[Event "Early-Titled-Tuesday-Blitz-September-12-2023"]
[Site "Chess.com"]
[Date "2023.09.12"]
[Round "6"]
[White "Itk04"]
[Black "jcibarra"]
[Result "1/2-1/2"]
[WhiteElo "2764"]
[BlackElo "2927"]
[TimeControl "180+1"]
[EndTime "9:06:52 PDT"]
[Termination "Game drawn by repetition"]

1. d4 {[%clk 0:03:00.9]} 1... Nf6 {[%clk 0:02:59.9]} 2. c4 {[%clk 0:02:59.1]}
2... d6 {[%clk 0:03:00.3]} 3. Nf3 {[%clk 0:02:53.6]} 3... g6 {[%clk 0:03:00.5]}
4. g3 {[%clk 0:02:53.5]} 4... Bg7 {[%clk 0:02:58.6]} 5. Bg2 {[%clk 0:02:53.8]}
5... Bf5 {[%clk 0:02:59.3]} 6. Nc3 {[%clk 0:02:52.6]} 6... Ne4 {[%clk
0:02:59.1]} 7. O-O {[%clk 0:02:47.8]} 7... Nxc3 {[%clk 0:02:58.5]} 8. bxc3
{[%clk 0:02:48.7]} 8... Be4 {[%clk 0:02:57.6]} 9. Bh3 {[%clk 0:02:41]} 9... O-O
{[%clk 0:02:53.3]} 10. Nd2 {[%clk 0:02:39.2]} 10... Bc6 {[%clk 0:02:52.6]} 11.
Rb1 {[%clk 0:02:34.5]} 11... b6 {[%clk 0:02:45.6]} 12. e4 {[%clk 0:02:20.4]}
12... Bd7 {[%clk 0:02:42.6]} 13. Bg2 {[%clk 0:02:19.6]} 13... c5 {[%clk
0:02:38.7]} 14. Nb3 {[%clk 0:02:04.5]} 14... Nc6 {[%clk 0:02:36.1]} 15. Be3
{[%clk 0:02:00.2]} 15... Rc8 {[%clk 0:02:35.7]} 16. Qe2 {[%clk 0:01:53.7]} 16...
e5 {[%clk 0:02:25.8]} 17. d5 {[%clk 0:01:48.6]} 17... Ne7 {[%clk 0:02:25.6]} 18.
f4 {[%clk 0:01:44.4]} 18... f5 {[%clk 0:02:22.3]} 19. fxe5 {[%clk 0:01:41.5]}
19... Bxe5 {[%clk 0:02:22.6]} 20. Bh6 {[%clk 0:01:28.7]} 20... Rf7 {[%clk
0:02:22.2]} 21. Bf4 {[%clk 0:01:29.2]} 21... Bxf4 {[%clk 0:02:13.3]} 22. Rxf4
{[%clk 0:01:30.1]} 22... g5 {[%clk 0:02:06.9]} 23. Rf2 {[%clk 0:01:27.9]} 23...
Ng6 {[%clk 0:02:06.5]} 24. exf5 {[%clk 0:01:21.2]} 24... Rxf5 {[%clk 0:02:06.3]}
25. Rxf5 {[%clk 0:01:11.3]} 25... Bxf5 {[%clk 0:02:07.2]} 26. Rf1 {[%clk
0:01:11.5]} 26... Qd7 {[%clk 0:02:05.4]} 27. Re1 {[%clk 0:00:59.2]} 27... Ne5
{[%clk 0:02:02.8]} 28. Nd2 {[%clk 0:00:53.4]} 28... Qg7 {[%clk 0:01:43]} 29. Ne4
{[%clk 0:00:37.3]} 29... Bxe4 {[%clk 0:01:42.7]} 30. Bxe4 {[%clk 0:00:38.2]}
30... Rf8 {[%clk 0:01:41.9]} 31. Rf1 {[%clk 0:00:37.8]} 31... Rf6 {[%clk
0:01:33.4]} 32. Bf5 {[%clk 0:00:36.2]} 32... g4 {[%clk 0:01:16.4]} 33. Be6+
{[%clk 0:00:27.9]} 33... Kf8 {[%clk 0:01:16.6]} 34. Rxf6+ {[%clk 0:00:21.1]}
34... Qxf6 {[%clk 0:01:17.5]} 35. Bxg4 {[%clk 0:00:20.8]} 35... Qg5 {[%clk
0:01:18]} 36. Be6 {[%clk 0:00:19.2]} 36... Qc1+ {[%clk 0:01:16.8]} 37. Qf1+
{[%clk 0:00:18.3]} 37... Qxf1+ {[%clk 0:01:15.1]} 38. Kxf1 {[%clk 0:00:19.2]}
38... Nxc4 {[%clk 0:01:15.5]} 39. Ke2 {[%clk 0:00:19]} 39... Ke7 {[%clk
0:01:14.9]} 40. h4 {[%clk 0:00:15.9]} 40... Kf6 {[%clk 0:01:14.4]} 41. Kd3
{[%clk 0:00:14.6]} 41... Ne5+ {[%clk 0:01:06]} 42. Ke4 {[%clk 0:00:14.7]} 42...
h6 {[%clk 0:01:06.4]} 43. g4 {[%clk 0:00:13.7]} 43... Ng6 {[%clk 0:01:06.6]} 44.
h5 {[%clk 0:00:11]} 44... Ne5 {[%clk 0:01:06.2]} 45. Kf4 {[%clk 0:00:08.8]}
45... Nd3+ {[%clk 0:01:06.2]} 46. Ke3 {[%clk 0:00:07]} 46... Nc1 {[%clk
0:01:03.1]} 47. Kd2 {[%clk 0:00:06.9]} 47... Nxa2 {[%clk 0:00:54.4]} 48. Kc2
{[%clk 0:00:07.5]} 48... a5 {[%clk 0:00:31.7]} 49. Kb2 {[%clk 0:00:07.6]} 49...
Nb4 {[%clk 0:00:29.8]} 50. cxb4 {[%clk 0:00:07]} 50... cxb4 {[%clk 0:00:30.7]}
51. Kb3 {[%clk 0:00:07.5]} 51... Ke5 {[%clk 0:00:27.1]} 52. Ka4 {[%clk
0:00:04.9]} 52... Kf4 {[%clk 0:00:26.2]} 53. Kb3 {[%clk 0:00:05]} 53... Ke5
{[%clk 0:00:26]} 54. Ka4 {[%clk 0:00:05.2]} 54... Kf4 {[%clk 0:00:24]} 55. Kb3
{[%clk 0:00:05.7]} 55... Ke5 {[%clk 0:00:13.4]} 1/2-1/2

[Event "Early-Titled-Tuesday-Blitz-September-12-2023"]
[Site "Chess.com"]
[Date "2023.09.12"]
[Round "6"]
[White "MarijaKuznecova"]
[Black "karinachess1"]
[Result "0-1"]
[WhiteElo "2406"]
[BlackElo "2612"]
[TimeControl "180+1"]
[EndTime "9:06:52 PDT"]
[Termination "karinachess1 won by resignation"]

1. e4 {[%clk 0:03:00.9]} 1... e5 {[%clk 0:02:58.8]} 2. Nf3 {[%clk 0:03:01]} 2...
Nc6 {[%clk 0:02:58.9]} 3. d4 {[%clk 0:03:01.7]} 3... exd4 {[%clk 0:02:58.8]} 4.
Nxd4 {[%clk 0:03:02.6]} 4... Bc5 {[%clk 0:02:58.7]} 5. Nb3 {[%clk 0:03:02.5]}
5... Bb6 {[%clk 0:02:58.8]} 6. Nc3 {[%clk 0:03:03.2]} 6... Nf6 {[%clk
0:02:58.7]} 7. Qe2 {[%clk 0:03:03.9]} 7... O-O {[%clk 0:02:57.5]} 8. Bg5 {[%clk
0:03:03.6]} 8... Nd4 {[%clk 0:02:50.1]} 9. Nxd4 {[%clk 0:03:00.6]} 9... Bxd4
{[%clk 0:02:49.9]} 10. Qd3 {[%clk 0:03:01.2]} 10... Bxc3+ {[%clk 0:02:23.8]} 11.
bxc3 {[%clk 0:02:53.7]} 11... h6 {[%clk 0:02:16.8]} 12. Bh4 {[%clk 0:02:53.1]}
12... g5 {[%clk 0:01:57.3]} 13. Bg3 {[%clk 0:02:52.5]} 13... Nxe4 {[%clk
0:01:32.9]} 14. Be2 {[%clk 0:02:18.3]} 14... d5 {[%clk 0:01:31.4]} 15. h4 {[%clk
0:02:14.5]} 15... Bf5 {[%clk 0:01:26.5]} 16. Qf3 {[%clk 0:02:06.2]} 16... Qf6
{[%clk 0:01:18.2]} 17. O-O {[%clk 0:01:44.2]} 17... Nd2 {[%clk 0:01:02.1]} 18.
Qxd5 {[%clk 0:01:39.5]} 18... Nxf1 {[%clk 0:01:01.7]} 19. Rxf1 {[%clk
0:01:40.4]} 19... c6 {[%clk 0:01:01.3]} 20. Qf3 {[%clk 0:01:39.5]} 20... Qg6
{[%clk 0:00:54.8]} 21. h5 {[%clk 0:01:11.4]} 21... Qe6 {[%clk 0:00:53.8]} 22.
Bh2 {[%clk 0:00:54.2]} 22... Rfe8 {[%clk 0:00:52.2]} 23. Bd3 {[%clk 0:00:46.8]}
23... Bxd3 {[%clk 0:00:45.1]} 24. cxd3 {[%clk 0:00:47.7]} 24... Qe2 {[%clk
0:00:38.8]} 25. Qf5 {[%clk 0:00:42.1]} 25... Qxh5 {[%clk 0:00:34.3]} 26. f4
{[%clk 0:00:38.1]} 26... Qg6 {[%clk 0:00:30.2]} 27. Qh3 {[%clk 0:00:34.2]} 27...
g4 {[%clk 0:00:27.8]} 28. Qg3 {[%clk 0:00:29.9]} 28... Qf5 {[%clk 0:00:25]} 29.
d4 {[%clk 0:00:22.4]} 29... Re6 {[%clk 0:00:23.9]} 30. Qh4 {[%clk 0:00:21.4]}
30... Rae8 {[%clk 0:00:23]} 31. Bg3 {[%clk 0:00:21.4]} 31... h5 {[%clk
0:00:20.8]} 32. Bf2 {[%clk 0:00:20.9]} 32... a6 {[%clk 0:00:20]} 33. c4 {[%clk
0:00:16.1]} 33... b5 {[%clk 0:00:19.6]} 34. cxb5 {[%clk 0:00:13.1]} 34... axb5
{[%clk 0:00:20.5]} 35. Rc1 {[%clk 0:00:12]} 35... Qxf4 {[%clk 0:00:13.4]} 36.
Rc5 {[%clk 0:00:10.6]} 36... Rh6 {[%clk 0:00:04.6]} 37. Rg5+ {[%clk 0:00:09.8]}
37... Kh7 {[%clk 0:00:04.6]} 38. g3 {[%clk 0:00:06.6]} 38... Qc1+ {[%clk
0:00:03.9]} 39. Kg2 {[%clk 0:00:06.4]} 39... Rg8 {[%clk 0:00:04]} 40. Rf5 {[%clk
0:00:03.9]} 40... Rg7 {[%clk 0:00:04.2]} 41. Rxh5 {[%clk 0:00:03.2]} 41... Rxh5
{[%clk 0:00:03.9]} 42. Qxh5+ {[%clk 0:00:04.1]} 42... Kg8 {[%clk 0:00:04.6]} 43.
Qf5 {[%clk 0:00:04.1]} 43... Qc4 {[%clk 0:00:02.9]} 44. Qc8+ {[%clk 0:00:03.7]}
44... Kh7 {[%clk 0:00:03.5]} 45. Qf5+ {[%clk 0:00:03.9]} 45... Rg6 {[%clk
0:00:04.1]} 46. Qh5+ {[%clk 0:00:03.4]} 46... Kg7 {[%clk 0:00:04.7]} 47. Qe5+
{[%clk 0:00:03.6]} 47... Kg8 {[%clk 0:00:03.8]} 48. Qb8+ {[%clk 0:00:02]} 48...
Kh7 {[%clk 0:00:03.8]} 49. Qe5 {[%clk 0:00:02.9]} 49... Qd5+ {[%clk 0:00:04.3]}
50. Qxd5 {[%clk 0:00:03.1]} 50... cxd5 {[%clk 0:00:05.2]} 0-1

[Event "Early-Titled-Tuesday-Blitz-September-12-2023"]
[Site "Chess.com"]
[Date "2023.09.12"]
[Round "6"]
[White "AlexandraSamaganova"]
[Black "Sadykov_Ramil"]
[Result "0-1"]
[WhiteElo "2290"]
[BlackElo "2552"]
[TimeControl "180+1"]
[EndTime "9:06:53 PDT"]
[Termination "Sadykov_Ramil won on time"]

1. c4 {[%clk 0:03:00.9]} 1... Nf6 {[%clk 0:02:51.9]} 2. Nc3 {[%clk 0:03:00.3]}
2... e6 {[%clk 0:02:49.1]} 3. e4 {[%clk 0:03:00]} 3... c5 {[%clk 0:02:48.4]} 4.
e5 {[%clk 0:02:58.1]} 4... Ng8 {[%clk 0:02:47.5]} 5. Nf3 {[%clk 0:02:58.4]} 5...
Nc6 {[%clk 0:02:47]} 6. d4 {[%clk 0:02:58.9]} 6... cxd4 {[%clk 0:02:46.9]} 7.
Nxd4 {[%clk 0:02:59.8]} 7... Nxe5 {[%clk 0:02:47.4]} 8. Ndb5 {[%clk 0:03:00.2]}
8... a6 {[%clk 0:02:40.2]} 9. Nd6+ {[%clk 0:02:59.3]} 9... Bxd6 {[%clk
0:02:40.8]} 10. Qxd6 {[%clk 0:03:00.2]} 10... f6 {[%clk 0:02:41.3]} 11. Be3
{[%clk 0:02:57.7]} 11... Ne7 {[%clk 0:02:31]} 12. Bb6 {[%clk 0:02:54.8]} 12...
Nf5 {[%clk 0:02:27.2]} 13. Qb4 {[%clk 0:02:53.6]} 13... Nc6 {[%clk 0:02:16.2]}
14. Qc5 {[%clk 0:02:33.8]} 14... Qe7 {[%clk 0:02:13.8]} 15. O-O-O {[%clk
0:02:17]} 15... Qxc5 {[%clk 0:02:06.3]} 16. Bxc5 {[%clk 0:02:16.7]} 16... Rb8
{[%clk 0:02:00.3]} 17. g4 {[%clk 0:02:09.8]} 17... b6 {[%clk 0:01:44.5]} 18.
Bxb6 {[%clk 0:01:17.8]} 18... Rxb6 {[%clk 0:01:38.9]} 19. gxf5 {[%clk
0:01:17.6]} 19... exf5 {[%clk 0:01:32.2]} 20. Nd5 {[%clk 0:01:16.9]} 20... Rb8
{[%clk 0:01:29]} 21. Bd3 {[%clk 0:00:53.8]} 21... d6 {[%clk 0:01:21.7]} 22. h4
{[%clk 0:00:37.2]} 22... Kf7 {[%clk 0:01:17.9]} 23. h5 {[%clk 0:00:35.8]} 23...
Ne5 {[%clk 0:01:09.1]} 24. Be2 {[%clk 0:00:35.3]} 24... Be6 {[%clk 0:01:04.1]}
25. f4 {[%clk 0:00:34.9]} 25... Ng4 {[%clk 0:01:00.4]} 26. Bxg4 {[%clk
0:00:20.6]} 26... fxg4 {[%clk 0:00:59.9]} 27. Ne3 {[%clk 0:00:20.9]} 27... Rhc8
{[%clk 0:00:42.9]} 28. b3 {[%clk 0:00:16.8]} 28... Rb6 {[%clk 0:00:41.5]} 29. f5
{[%clk 0:00:13.7]} 29... Bd7 {[%clk 0:00:39.9]} 30. h6 {[%clk 0:00:12.8]} 30...
g6 {[%clk 0:00:34]} 31. fxg6+ {[%clk 0:00:11.7]} 31... hxg6 {[%clk 0:00:29.6]}
32. Nd5 {[%clk 0:00:09.5]} 32... Rbc6 {[%clk 0:00:28.8]} 33. Rde1 {[%clk
0:00:05.7]} 33... Be6 {[%clk 0:00:26.4]} 34. Nf4 {[%clk 0:00:06.1]} 34... d5
{[%clk 0:00:26.4]} 35. h7 {[%clk 0:00:06]} 35... Rh8 {[%clk 0:00:23.9]} 36. Kd2
{[%clk 0:00:05.1]} 36... dxc4 {[%clk 0:00:22.8]} 37. bxc4 {[%clk 0:00:05.2]}
37... Bxc4 {[%clk 0:00:20.2]} 38. Rb1 {[%clk 0:00:05.3]} 38... Rc7 {[%clk
0:00:16]} 39. Rb6 {[%clk 0:00:04.1]} 39... g5 {[%clk 0:00:16]} 40. Ne2 {[%clk
0:00:03.2]} 40... Bxe2 {[%clk 0:00:14.8]} 41. Kxe2 {[%clk 0:00:04.1]} 41... Kg6
{[%clk 0:00:14.8]} 42. Rxa6 {[%clk 0:00:03.6]} 42... Rf7 {[%clk 0:00:13]} 43.
Kf2 {[%clk 0:00:03.3]} 43... Rhxh7 {[%clk 0:00:13.1]} 44. Rg1 {[%clk 0:00:02.6]}
44... Rh4 {[%clk 0:00:12.3]} 45. Rg2 {[%clk 0:00:02.4]} 45... Rb7 {[%clk
0:00:12.1]} 46. Ke3 {[%clk 0:00:01.2]} 46... Rh3+ {[%clk 0:00:11.5]} 47. Kd4
{[%clk 0:00:01.4]} 47... g3 {[%clk 0:00:11.5]} 0-1

[Event "Early-Titled-Tuesday-Blitz-September-12-2023"]
[Site "Chess.com"]
[Date "2023.09.12"]
[Round "6"]
[White "tptagain"]
[Black "Goryachkina"]
[Result "1-0"]
[WhiteElo "2926"]
[BlackElo "2667"]
[TimeControl "180+1"]
[EndTime "9:06:54 PDT"]
[Termination "tptagain won on time"]

1. Nf3 {[%clk 0:03:00.9]} 1... d5 {[%clk 0:02:59.5]} 2. c4 {[%clk 0:03:01]} 2...
e6 {[%clk 0:02:56.4]} 3. b3 {[%clk 0:03:00.1]} 3... Nf6 {[%clk 0:02:53.9]} 4.
Bb2 {[%clk 0:03:00.2]} 4... Be7 {[%clk 0:02:52.2]} 5. e3 {[%clk 0:02:56.5]} 5...
O-O {[%clk 0:02:51.9]} 6. Nc3 {[%clk 0:02:56.9]} 6... b6 {[%clk 0:02:50.9]} 7.
cxd5 {[%clk 0:02:57]} 7... exd5 {[%clk 0:02:49.3]} 8. g3 {[%clk 0:02:53.1]} 8...
Bb7 {[%clk 0:02:47.3]} 9. Bg2 {[%clk 0:02:52.8]} 9... d4 {[%clk 0:02:45.6]} 10.
exd4 {[%clk 0:02:53.1]} 10... Nbd7 {[%clk 0:02:37.4]} 11. O-O {[%clk 0:02:51.8]}
11... a6 {[%clk 0:02:35.6]} 12. Rc1 {[%clk 0:02:48.2]} 12... Bd6 {[%clk
0:02:35.3]} 13. Re1 {[%clk 0:02:44.9]} 13... Re8 {[%clk 0:02:33.1]} 14. Qc2
{[%clk 0:02:43.8]} 14... h6 {[%clk 0:02:27.5]} 15. Qf5 {[%clk 0:02:40.8]} 15...
b5 {[%clk 0:02:14.7]} 16. Ne5 {[%clk 0:02:37]} 16... Bxg2 {[%clk 0:02:11.2]} 17.
Kxg2 {[%clk 0:02:37.9]} 17... Qc8 {[%clk 0:01:58.3]} 18. Ne4 {[%clk 0:02:02.9]}
18... Nxe5 {[%clk 0:01:04.3]} 19. Qxc8 {[%clk 0:01:52.2]} 19... Raxc8 {[%clk
0:01:03.5]} 20. dxe5 {[%clk 0:01:33.6]} 20... Bxe5 {[%clk 0:01:00.1]} 21. Bxe5
{[%clk 0:01:24.9]} 21... Rxe5 {[%clk 0:00:59.8]} 22. Nxf6+ {[%clk 0:01:22.3]}
22... gxf6 {[%clk 0:00:59.7]} 23. Rxe5 {[%clk 0:01:07.4]} 23... fxe5 {[%clk
0:00:59.4]} 24. Kf3 {[%clk 0:01:08.3]} 24... c5 {[%clk 0:00:51.4]} 25. Ke4
{[%clk 0:01:07.1]} 25... f6 {[%clk 0:00:46]} 26. d3 {[%clk 0:00:56.5]} 26... Kf7
{[%clk 0:00:42.2]} 27. Kf5 {[%clk 0:00:56.7]} 27... h5 {[%clk 0:00:26.8]} 28. h4
{[%clk 0:00:50.9]} 28... Rc7 {[%clk 0:00:26.7]} 29. f3 {[%clk 0:00:37.5]} 29...
Rc8 {[%clk 0:00:19.5]} 30. g4 {[%clk 0:00:36.4]} 30... Rd8 {[%clk 0:00:12.9]}
31. Rxc5 {[%clk 0:00:28.1]} 31... Rxd3 {[%clk 0:00:12.6]} 32. Rc7+ {[%clk
0:00:27.1]} 32... Ke8 {[%clk 0:00:12.3]} 33. gxh5 {[%clk 0:00:24.3]} 33... Rxf3+
{[%clk 0:00:11.5]} 34. Ke6 {[%clk 0:00:22.3]} 34... Kf8 {[%clk 0:00:11.1]} 35.
h6 {[%clk 0:00:21.5]} 35... Kg8 {[%clk 0:00:11.3]} 36. Kd5 {[%clk 0:00:07.4]}
36... Rd3+ {[%clk 0:00:09]} 37. Ke4 {[%clk 0:00:06.3]} 37... Rd4+ {[%clk
0:00:09.3]} 38. Kf5 {[%clk 0:00:07]} 38... Rf4+ {[%clk 0:00:07.7]} 39. Kg6
{[%clk 0:00:07.2]} 39... Rg4+ {[%clk 0:00:08.2]} 40. Kxf6 {[%clk 0:00:07.4]}
40... e4 {[%clk 0:00:07.2]} 41. h7+ {[%clk 0:00:05]} 41... Kh8 {[%clk
0:00:07.3]} 42. Re7 {[%clk 0:00:04.9]} 42... Rxh4 {[%clk 0:00:07.3]} 43. Kf5
{[%clk 0:00:05]} 43... a5 {[%clk 0:00:03.2]} 44. Rxe4 {[%clk 0:00:03.5]} 44...
Rh5+ {[%clk 0:00:02.2]} 45. Kg6 {[%clk 0:00:03.6]} 1-0

[Event "Early-Titled-Tuesday-Blitz-September-12-2023"]
[Site "Chess.com"]
[Date "2023.09.12"]
[Round "6"]
[White "Shield12"]
[Black "Zohid6"]
[Result "1-0"]
[WhiteElo "2978"]
[BlackElo "2737"]
[TimeControl "180+1"]
[EndTime "9:06:58 PDT"]
[Termination "Shield12 won by checkmate"]

1. e4 {[%clk 0:03:00.9]} 1... e6 {[%clk 0:02:56.4]} 2. d4 {[%clk 0:03:01.3]}
2... d5 {[%clk 0:02:56.5]} 3. Nc3 {[%clk 0:03:01.1]} 3... Nf6 {[%clk 0:02:56.4]}
4. Bg5 {[%clk 0:03:01.1]} 4... Be7 {[%clk 0:02:55.9]} 5. e5 {[%clk 0:02:59.6]}
5... Nfd7 {[%clk 0:02:56]} 6. Bxe7 {[%clk 0:03:00.1]} 6... Qxe7 {[%clk
0:02:56.9]} 7. f4 {[%clk 0:03:00.8]} 7... O-O {[%clk 0:02:56.1]} 8. Nf3 {[%clk
0:03:00.1]} 8... c5 {[%clk 0:02:56.3]} 9. Bd3 {[%clk 0:02:57.7]} 9... h6 {[%clk
0:02:45.9]} 10. dxc5 {[%clk 0:02:50]} 10... Nc6 {[%clk 0:02:38.6]} 11. O-O
{[%clk 0:02:48.6]} 11... Nxc5 {[%clk 0:02:31.7]} 12. Qd2 {[%clk 0:02:46.1]}
12... b6 {[%clk 0:02:28]} 13. Ne2 {[%clk 0:02:42.4]} 13... a5 {[%clk 0:02:24.4]}
14. Bb5 {[%clk 0:02:39.6]} 14... Bd7 {[%clk 0:02:22.1]} 15. a4 {[%clk
0:02:37.2]} 15... Rfc8 {[%clk 0:02:18.1]} 16. Qe3 {[%clk 0:02:23.9]} 16... Nb4
{[%clk 0:02:14.5]} 17. Ned4 {[%clk 0:02:22.3]} 17... g6 {[%clk 0:01:36.5]} 18.
c3 {[%clk 0:02:12.8]} 18... Nc6 {[%clk 0:01:31.8]} 19. Bxc6 {[%clk 0:02:10.6]}
19... Bxc6 {[%clk 0:01:32.7]} 20. f5 {[%clk 0:02:11.5]} 20... exf5 {[%clk
0:01:28.8]} 21. Qxh6 {[%clk 0:02:11.1]} 21... Ne4 {[%clk 0:01:19.9]} 22. e6
{[%clk 0:02:06.6]} 22... Be8 {[%clk 0:01:19.8]} 23. exf7+ {[%clk 0:01:25.8]}
23... Bxf7 {[%clk 0:01:20.7]} 24. Rae1 {[%clk 0:01:20.6]} 24... Re8 {[%clk
0:01:13.3]} 25. Qf4 {[%clk 0:01:15.1]} 25... Rad8 {[%clk 0:00:47.3]} 26. Re2
{[%clk 0:01:12.3]} 26... Qd6 {[%clk 0:00:46.5]} 27. Qh6 {[%clk 0:01:11.8]} 27...
Qf8 {[%clk 0:00:45]} 28. Qf4 {[%clk 0:01:10.1]} 28... Qg7 {[%clk 0:00:42.3]} 29.
Ng5 {[%clk 0:01:07.6]} 29... Rd7 {[%clk 0:00:22.8]} 30. g4 {[%clk 0:01:04.1]}
30... Rde7 {[%clk 0:00:11.7]} 31. Nc6 {[%clk 0:00:58.6]} 31... Nxg5 {[%clk
0:00:10.5]} 32. Nxe7+ {[%clk 0:00:55.7]} 32... Rxe7 {[%clk 0:00:11]} 33. Qb8+
{[%clk 0:00:51.9]} 33... Be8 {[%clk 0:00:11.4]} 34. Rxe7 {[%clk 0:00:43.6]}
34... Qxe7 {[%clk 0:00:12.3]} 35. gxf5 {[%clk 0:00:44.2]} 35... gxf5 {[%clk
0:00:07.4]} 36. Qg3 {[%clk 0:00:39.4]} 36... Kh7 {[%clk 0:00:05.2]} 37. Rxf5
{[%clk 0:00:37]} 37... Ne4 {[%clk 0:00:03.3]} 38. Qe5 {[%clk 0:00:24.5]} 38...
Qc5+ {[%clk 0:00:02.4]} 39. Kg2 {[%clk 0:00:24.2]} 39... Bg6 {[%clk 0:00:02.8]}
40. Rf4 {[%clk 0:00:20.3]} 40... Qe3 {[%clk 0:00:02.5]} 41. Rh4+ {[%clk
0:00:20]} 41... Kg8 {[%clk 0:00:02.8]} 42. Qxd5+ {[%clk 0:00:13.8]} 42... Kg7
{[%clk 0:00:02.9]} 43. Qe5+ {[%clk 0:00:13.7]} 43... Kg8 {[%clk 0:00:03.4]} 44.
Qe6+ {[%clk 0:00:13.3]} 44... Kg7 {[%clk 0:00:03.9]} 45. Qe7+ {[%clk 0:00:13.3]}
45... Kg8 {[%clk 0:00:04.4]} 46. Qd8+ {[%clk 0:00:13.4]} 46... Kf7 {[%clk
0:00:03]} 47. Qd7+ {[%clk 0:00:13.2]} 47... Kf8 {[%clk 0:00:02.5]} 48. Rh8#
{[%clk 0:00:12.3]} 1-0

[Event "Early-Titled-Tuesday-Blitz-September-12-2023"]
[Site "Chess.com"]
[Date "2023.09.12"]
[Round "6"]
[White "ShahMatKanal"]
[Black "TregubovP"]
[Result "0-1"]
[WhiteElo "2500"]
[BlackElo "2648"]
[TimeControl "180+1"]
[EndTime "9:07:00 PDT"]
[Termination "TregubovP won by resignation"]

1. e4 {[%clk 0:03:00.9]} 1... c5 {[%clk 0:02:59]} 2. Nc3 {[%clk 0:02:59.6]} 2...
e6 {[%clk 0:02:58.9]} 3. d4 {[%clk 0:02:59.8]} 3... cxd4 {[%clk 0:02:57.7]} 4.
Qxd4 {[%clk 0:03:00.7]} 4... Nc6 {[%clk 0:02:54.9]} 5. Qe3 {[%clk 0:03:00.5]}
5... Nf6 {[%clk 0:02:53.3]} 6. Bd2 {[%clk 0:02:55.7]} 6... d5 {[%clk 0:02:47]}
7. exd5 {[%clk 0:02:56.6]} 7... Nxd5 {[%clk 0:02:47]} 8. Nxd5 {[%clk 0:02:56.8]}
8... Qxd5 {[%clk 0:02:47.5]} 9. Nf3 {[%clk 0:02:40.1]} 9... Bc5 {[%clk 0:02:45]}
10. Qd3 {[%clk 0:02:39.3]} 10... Qxd3 {[%clk 0:02:30.3]} 11. Bxd3 {[%clk
0:02:40.2]} 11... Nb4 {[%clk 0:02:30.9]} 12. Bb5+ {[%clk 0:02:37.2]} 12... Bd7
{[%clk 0:02:31]} 13. Bxd7+ {[%clk 0:02:36.6]} 13... Kxd7 {[%clk 0:02:31.4]} 14.
O-O-O {[%clk 0:02:27.4]} 14... Ke7 {[%clk 0:02:26.1]} 15. Ne5 {[%clk 0:01:55.5]}
15... Rhd8 {[%clk 0:02:05.3]} 16. Bxb4 {[%clk 0:01:32.7]} 16... Bxb4 {[%clk
0:02:04.8]} 17. Rxd8 {[%clk 0:01:30.8]} 17... Rxd8 {[%clk 0:02:03.7]} 18. Rd1
{[%clk 0:01:31.3]} 18... Rxd1+ {[%clk 0:01:55.6]} 19. Kxd1 {[%clk 0:01:32.2]}
19... Bd6 {[%clk 0:01:48]} 20. Nf3 {[%clk 0:01:25.1]} 20... f5 {[%clk
0:01:44.6]} 21. Ke2 {[%clk 0:01:20.5]} 21... Kf6 {[%clk 0:01:44.8]} 22. h3
{[%clk 0:01:15.8]} 22... e5 {[%clk 0:01:45.1]} 23. Nd2 {[%clk 0:01:09.3]} 23...
e4 {[%clk 0:01:41.6]} 24. Nc4 {[%clk 0:01:05.6]} 24... Bc5 {[%clk 0:01:37.2]}
25. Na5 {[%clk 0:01:05.4]} 25... b5 {[%clk 0:01:27]} 26. Nb3 {[%clk 0:00:47.6]}
26... Bb6 {[%clk 0:01:25.9]} 27. Nd2 {[%clk 0:00:47.1]} 27... Ke5 {[%clk
0:01:24.2]} 28. g3 {[%clk 0:00:38.5]} 28... g5 {[%clk 0:01:20.9]} 29. c3 {[%clk
0:00:31.6]} 29... f4 {[%clk 0:01:20]} 30. gxf4+ {[%clk 0:00:28.4]} 30... gxf4
{[%clk 0:01:20.1]} 31. f3 {[%clk 0:00:27.7]} 31... e3 {[%clk 0:00:55]} 32. Ne4
{[%clk 0:00:27.8]} 32... Bc7 {[%clk 0:00:46.1]} 33. Kd3 {[%clk 0:00:24.8]} 33...
Kf5 {[%clk 0:00:44.7]} 34. b3 {[%clk 0:00:17.9]} 34... Kg6 {[%clk 0:00:44.6]}
35. c4 {[%clk 0:00:12.1]} 35... bxc4+ {[%clk 0:00:44.4]} 36. bxc4 {[%clk
0:00:13]} 36... Kh5 {[%clk 0:00:44]} 37. Nf6+ {[%clk 0:00:09.9]} 37... Kg6
{[%clk 0:00:33.1]} 38. Nd5 {[%clk 0:00:10.1]} 38... Bd6 {[%clk 0:00:32]} 39. c5
{[%clk 0:00:09.8]} 39... Bxc5 {[%clk 0:00:30.3]} 40. Nxf4+ {[%clk 0:00:05.7]}
40... Kf5 {[%clk 0:00:30.8]} 41. Nd5 {[%clk 0:00:04.9]} 41... Kg5 {[%clk
0:00:21.8]} 42. Nxe3 {[%clk 0:00:02.6]} 42... Kf4 {[%clk 0:00:21.6]} 43. Ng4
{[%clk 0:00:02.5]} 43... Kxf3 {[%clk 0:00:21]} 44. Nf6 {[%clk 0:00:02.9]} 44...
h6 {[%clk 0:00:20.2]} 45. Ng8 {[%clk 0:00:03]} 45... h5 {[%clk 0:00:19.8]} 46.
Nf6 {[%clk 0:00:03.2]} 46... h4 {[%clk 0:00:20.1]} 47. Kc4 {[%clk 0:00:02.2]}
47... Bb6 {[%clk 0:00:19.2]} 48. Nd5 {[%clk 0:00:01.9]} 48... Kg3 {[%clk
0:00:18.9]} 49. Nxb6 {[%clk 0:00:01.8]} 49... axb6 {[%clk 0:00:18.7]} 50. Kb5
{[%clk 0:00:02.7]} 50... Kxh3 {[%clk 0:00:19.1]} 51. Kxb6 {[%clk 0:00:03.3]}
51... Kg4 {[%clk 0:00:19.8]} 52. a4 {[%clk 0:00:04.2]} 52... h3 {[%clk
0:00:20.4]} 53. a5 {[%clk 0:00:05.1]} 53... h2 {[%clk 0:00:20.9]} 54. a6 {[%clk
0:00:06]} 54... h1=Q {[%clk 0:00:21.3]} 55. Ka7 {[%clk 0:00:05.8]} 55... Qc6
{[%clk 0:00:20.8]} 56. Kb8 {[%clk 0:00:04.7]} 56... Qxa6 {[%clk 0:00:21.2]} 0-1